bitfinex-derivatives/quotes_ETHF0:USTF0_20250602
["timestamp","ask_amount","ask_price","bid_price","bid_amount"]
[1748895442536,0.78522,2545.9,2545.8,0.6544]
[1748895442737,0.78519,2545.9,2545.8,1.4396]
[1748895443334,0.78518,2546.0,2545.9,0.78517]
[1748895445133,0.78518,2546.0,2545.9,1.42627]
[1748895445432,0.78518,2546.0,2545.9,2.73827]
[1748895447432,0.78518,2546.0,2545.9,1.9531]
[1748895447834,0.78518,2546.0,2545.9,2.73829]
[1748895448033,0.78518,2546.0,2545.9,1.9531]
[1748895448537,0.78518,2546.0,2545.9,2.73829]
[1748895448730,0.78518,2546.0,2545.9,1.9531]
[1748895449330,0.78518,2546.0,2545.9,2.73829]
[1748895449637,0.78518,2546.0,2545.9,1.9531]
[1748895449839,0.78522,2545.8,2545.7,3.2078]
[1748895450035,0.78525,2545.7,2545.6,1.2764]
[1748895450931,0.85594789,2545.7,2545.6,1.2764]
[1748895451141,0.07069789,2545.7,2545.6,2.06168]
[1748895451932,0.78521,2545.9,2545.8,0.78522]
[1748895452640,0.78521,2545.9,2545.8,2.08132]
[1748895454338,0.78521,2545.9,2545.8,2.0813]
[1748895454339,0.78519,2545.9,2545.8,2.0813]
[1748895455639,0.00589484,2546.1,2545.9,0.78517]
[1748895455838,0.00589484,2546.1,2546.0,1.3536]
[1748895456039,0.00589484,2546.1,2546.0,2.13876]
[1748895456239,0.79102484,2546.1,2546.0,1.3536]
[1748895456641,0.00589484,2546.1,2546.0,4.5614]
[1748895456844,0.00589484,2546.1,2546.0,5.34656]
[1748895457143,0.00589484,2546.1,2546.0,10.34656]
[1748895457343,2.35139292,2546.7,2546.2,1.96272]
[1748895457639,2.35139292,2546.7,2546.5,0.785]
[1748895458142,2.35139292,2546.7,2546.6,0.78498]
[1748895458339,3.01629292,2546.8,2546.3,5.2189]
[1748895458540,3.80122292,2546.8,2546.5,0.78498]
[1748895458741,3.80122292,2546.8,2546.3,5.2189]
[1748895458742,3.01629292,2546.8,2546.3,5.2189]
[1748895459045,3.80122292,2546.8,2546.5,0.78499]
[1748895459232,5.06692292,2546.8,2546.3,5.2189]
[1748895459437,5.06692292,2546.8,2546.5,0.78499]
[1748895459637,4.28199292,2546.8,2546.3,5.2189]
[1748895459842,4.28199292,2546.8,2546.5,0.785]
[1748895460037,5.06692292,2546.8,2546.5,0.785]
[1748895460231,5.06692292,2546.8,2546.6,0.78497]
[1748895460640,4.28199292,2546.8,2546.6,0.78497]
[1748895460839,0.78495,2546.7,2546.5,0.785]
[1748895461039,2.71554,2546.8,2546.5,0.785]
[1748895461339,2.71554,2546.8,2546.6,0.78498]
[1748895461540,1.9306,2546.8,2546.6,0.78498]
[1748895461735,2.35728776,2546.9,2546.6,3.2078]
[1748895461941,0.00589484,2546.9,2546.8,0.78492]
[1748895462141,0.00589484,2546.9,2546.8,1.43312]
[1748895462345,0.00589484,2546.9,2546.8,0.6482]
[1748895462538,0.00589484,2546.9,2546.8,1.43312]
[1748895463242,0.79077484,2546.9,2546.8,0.6482]
[1748895463441,0.78493,2546.8,2546.6,0.78497]
[1748895463743,0.78493,2546.8,2546.4,0.6482]
[1748895463744,0.79078484,2546.9,2546.7,0.78494]
[1748895464645,0.79078484,2546.9,2546.8,1.3438]
[1748895465750,0.79078484,2546.9,2546.7,0.78495]
[1748895466141,0.78492,2546.8,2546.6,0.78497]
[1748895466342,0.78492,2546.8,2546.5,1.3438]
[1748895466542,0.78492,2546.8,2546.6,0.78496]
[1748895466950,0.00589484,2546.9,2546.5,1.3438]
[1748895467246,0.78493,2546.8,2546.6,0.78496]
[1748895467551,0.78496,2546.7,2546.5,2.1288]
[1748895467746,0.78494,2546.8,2546.6,0.78498]
[1748895468147,1.93849484,2546.9,2546.5,1.3438]
[1748895468357,5.07478776,2546.9,2546.7,0.78494]
[1748895468645,2.72339484,2546.9,2546.7,0.78494]
[1748895468952,5.07478776,2546.9,2546.7,0.78494]
[1748895470045,4.28988776,2546.9,2546.7,0.78493]
[1748895470251,5.14548565,2546.9,2546.7,0.78492]
[1748895470451,3.13631292,2546.8,2546.7,0.78492]
[1748895470643,3.13631292,2546.8,2546.5,1.3438]
[1748895470644,2.35139292,2546.8,2546.5,1.3438]
[1748895470849,4.36058565,2546.9,2546.6,3.2078]
[1748895471054,2.35139292,2546.8,2546.7,0.78493]
[1748895471353,3.13633292,2546.8,2546.6,3.99277]
[1748895471653,3.13046734,2546.7,2546.6,3.99277]
[1748895471854,2.34551734,2546.7,2546.6,3.99277]
[1748895474357,3.13046734,2546.7,2546.6,3.99278]
[1748895474654,3.13046734,2546.7,2546.6,3.2078]
[1748895474856,0.78495,2546.7,2546.6,3.99278]
[1748895475257,0.78495,2546.7,2546.6,3.2078]
[1748895475858,0.78498,2546.6,2546.5,1.3438]
[1748895476157,0.78501,2546.5,2546.4,0.6482]
[1748895476356,1.9838,2546.5,2546.1,1.3411]
[1748895476656,2.34642373,2546.3,2546.2,0.7851]
[1748895476853,3.13150373,2546.3,2546.1,2.12621]
[1748895478260,2.34642373,2546.3,2546.2,0.7851]
[1748895479155,2.34642373,2546.3,2546.1,1.3411]
[1748895479357,2.34642373,2546.3,2546.2,0.7851]
[1748895481356,2.34642373,2546.4,2546.3,0.78507]
[1748895481555,2.34642373,2546.4,2546.3,5.93307]
[1748895481754,2.34642373,2546.8,2546.7,0.78495]
[1748895482058,0.00589484,2546.9,2546.8,0.78492]
[1748895482361,0.07659273,2546.9,2546.8,2.74592]
[1748895482555,0.07659273,2546.9,2546.8,7.74592]
[1748895483261,2.34642373,2547.3,2547.2,0.78479]
[1748895483656,2.34642373,2547.3,2547.2,2.10619]
[1748895484761,0.00589484,2547.5,2547.2,1.3214]
[1748895484961,0.00589484,2547.5,2547.4,0.78473]
[1748895485558,0.00589484,2547.5,2547.4,4.64853]
[1748895487860,2.34642373,2548.0,2547.9,0.78458]
[1748895488163,2.34642373,2548.0,2547.9,3.99238]
[1748895488658,2.34642373,2548.1,2548.0,0.78455]
[1748895488854,0.6395,2548.2,2548.1,0.78452]
[1748895489059,0.00589484,2548.3,2548.2,0.78449]
[1748895489258,0.00589484,2548.3,2548.0,3.23497]
[1748895489259,0.00589484,2548.3,2548.1,0.78449]
[1748895489459,0.00589484,2548.3,2548.2,2.05809]
[1748895489662,0.00589484,2548.3,2548.2,1.2736]
[1748895489663,0.79035484,2548.3,2548.2,1.2736]
[1748895490859,0.78454,2548.1,2547.9,3.2078]
[1748895491059,0.7845,2548.2,2547.9,3.2078]
[1748895491259,1.2448,2548.2,2548.1,0.78452]
[1748895491560,1.2448,2548.2,2547.9,3.99235]
[1748895491871,2.0293,2548.2,2548.0,0.78455]
[1748895492069,0.78455,2548.0,2547.9,3.2078]
[1748895492564,1.45114,2548.1,2547.9,3.99238]
[1748895492762,0.78455,2548.0,2547.9,3.2078]
[1748895492967,2.11025,2548.0,2547.9,3.2078]
[1748895493362,4.5335,2548.0,2547.5,3.2078]
[1748895493565,0.6183,2547.9,2547.5,3.99248]
[1748895493760,0.78464,2547.7,2547.5,3.2078]
[1748895493968,0.78465,2547.7,2547.5,3.9925]
[1748895494167,0.78465,2547.7,2547.5,3.2078]
[1748895494370,1.3257,2547.8,2547.6,0.78467]
[1748895494670,1.3257,2547.8,2547.5,3.99248]
[1748895494970,1.40289,2547.9,2547.6,0.78467]
[1748895495161,1.40289,2547.9,2547.6,2.10807]
[1748895495361,1.40289,2547.9,2547.7,0.78462]
[1748895495663,0.78464,2547.7,2547.6,1.3234]
[1748895496367,2.07643,2547.8,2547.5,3.9925]
[1748895496669,2.07643,2547.8,2547.5,3.2078]
[1748895496670,0.78466,2547.7,2547.5,3.2078]
[1748895496869,0.7847,2547.5,2547.4,0.6523]
[1748895497073,0.78476,2547.3,2547.2,3.2078]
[1748895497369,0.78475,2547.4,2547.2,3.99259]
[1748895497569,1.2918,2547.6,2547.2,4.5312]
[1748895497775,3.2078,2547.4,2546.3,0.02978]
[1748895497967,3.99285,2546.4,2546.3,0.02978]
[1748895498270,22.29685,2546.4,2546.3,3.02978]
[1748895498768,3.2188,2546.4,2546.3,3.81486]
[1748895499271,0.011,2546.4,2546.3,3.81486]
[1748895499474,0.011,2546.4,2546.3,5.85016]
[1748895499662,2.35231857,2546.6,2546.3,5.85016]
[1748895499663,0.00589484,2546.6,2546.5,0.78501]
[1748895500072,0.6387,2547.2,2546.5,0.78501]
[1748895500073,3.2078,2547.2,2547.1,0.78483]
[1748895502665,3.2078,2547.2,2547.0,2.82604]
[1748895502865,3.2078,2547.2,2547.1,0.78483]
[1748895504070,0.00589484,2547.4,2547.3,0.78477]
[1748895504770,0.00589484,2547.4,2547.3,2.08047]
[1748895507472,0.00589484,2547.4,2547.3,14.32227]
[1748895510271,0.00589484,2547.4,2547.3,14.11447]
[1748895510580,0.00589484,2547.4,2547.3,12.32227]
[1748895511670,0.00589484,2547.4,2547.3,8.28827]
[1748895511878,0.00589484,2547.4,2547.3,12.31927]
[1748895513682,4.84e-06,2547.4,2547.3,17.31927]
[1748895513880,3.12369203,2548.5,2548.4,0.78444]
[1748895514175,3.2078,2548.7,2547.3,34.9365]
[1748895514176,5.55049323,2548.7,2548.6,0.78437]
[1748895514371,3.2078,2548.7,2548.6,0.78437]
[1748895515270,0.65352986,2548.9,2548.8,0.78431]
[1748895516079,1.43782986,2548.9,2548.4,1.96693484]
[1748895516274,1.99872986,2548.9,2548.4,1.96693484]
[1748895516475,0.78432,2548.8,2548.6,0.78435]
[1748895516677,0.78435,2548.7,2548.4,0.00589484]
[1748895516874,3.2078,2548.7,2548.5,0.7844]
[1748895517181,3.2078,2548.7,2548.6,0.78438]
[1748895517384,3.99215,2548.7,2548.4,0.00589484]
[1748895517592,1.3452,2548.6,2548.5,0.78438]
[1748895517884,1.3452,2548.6,2548.4,0.79031484]
[1748895517885,0.07069789,2548.5,2548.4,0.79031484]
[1748895519579,0.00392986,2548.9,2548.8,0.78432]
[1748895521779,0.00392986,2548.9,2548.8,3.78432]
[1748895521979,0.00392986,2548.9,2548.8,4.46162]
[1748895523684,9.86e-06,2548.9,2548.8,7.66942]
[1748895527780,9.86e-06,2548.9,2548.8,8.98822]
[1748895530085,0.07070775,2548.9,2548.8,8.98822]
[1748895532087,0.07070775,2548.9,2548.8,6.99212]
[1748895532488,0.85499775,2548.9,2548.8,3.78432]
[1748895532786,0.85499775,2548.9,2548.8,3.0]
[1748895533288,2.75189775,2548.9,2548.8,3.0]
[1748895533878,7.75189775,2548.9,2548.8,3.0]
[1748895534290,7.75189775,2548.9,2548.8,3.78432]
[1748895534488,2.75189775,2548.9,2548.8,3.78432]
[1748895535281,2.75189775,2548.9,2548.8,3.0]
[1748895536295,7.75189775,2548.9,2548.8,3.0]
[1748895536583,6.96760775,2548.9,2548.4,0.00589484]
[1748895536784,3.99217,2548.7,2548.6,0.78435]
[1748895537179,9.554,2548.7,2548.4,0.00589484]
[1748895537385,0.78441,2548.5,2548.4,0.79030484]
[1748895537786,2.10111,2548.5,2548.4,0.79030484]
[1748895537985,2.10111,2548.5,2548.4,0.00589484]
[1748895538483,6.3167,2548.5,2547.7,1.96159]
[1748895538688,6.3167,2548.5,2547.9,0.78455]
[1748895538689,3.2078,2548.0,2547.9,0.78455]
[1748895540091,2.6448,2548.2,2548.1,0.78454]
[1748895540288,0.6665,2548.2,2548.1,0.78454]
[1748895540493,0.78457,2548.1,2548.0,0.78455]
[1748895540795,0.78463,2547.8,2547.7,3.00589484]
[1748895540991,0.78463,2547.8,2547.7,3.79055484]
[1748895541194,3.2078,2547.8,2547.7,3.79055484]
[1748895541896,3.2078,2547.9,2547.7,3.00589484]
[1748895542193,4.6932,2548.0,2547.9,0.7846]
[1748895542794,1.9498,2548.2,2548.1,0.78454]
[1748895542997,2.7343,2548.2,2548.1,0.78454]
[1748895543196,1.9498,2548.2,2548.1,0.78454]
[1748895543596,8.28476529,2548.2,2548.1,0.78454]
[1748895544107,8.28479529,2548.2,2548.1,0.78453]
[1748895545402,6.01282789,2548.2,2548.1,0.78453]
[1748895548405,5.22829789,2548.2,2548.1,0.78453]
[1748895549707,3.94499789,2548.2,2548.1,0.78453]
[1748895550598,0.73719789,2548.2,2548.1,0.78453]
[1748895550796,1.52169789,2548.2,2548.1,0.78453]
[1748895551698,0.73719789,2548.2,2548.1,0.78453]
[1748895551896,4.72949789,2548.2,2548.1,0.78453]
[1748895552104,0.78457,2548.1,2548.0,0.78453]
[1748895552405,2.07757,2548.1,2548.0,0.78453]
[1748895552902,1.9618,2547.6,2546.9,1.96225]
[1748895553113,0.78484,2547.2,2546.9,1.8988]
[1748895553302,0.78484,2547.2,2547.1,0.78482]
[1748895553505,0.78487,2547.1,2547.0,0.78486]
[1748895554209,1.3656,2547.2,2547.1,0.78484]
[1748895556110,3.21369484,2547.3,2547.2,0.78481]
[1748895557908,0.78485,2547.2,2547.1,0.78482]
[1748895558214,3.21369484,2547.3,2547.2,0.78481]
[1748895558514,5.17567484,2547.3,2546.9,4.8988]
[1748895558705,3.99267,2547.0,2546.9,3.0]
[1748895558902,8.02267,2547.0,2546.9,3.0]
[1748895559111,13.02267,2547.0,2546.9,3.0]
[1748895559506,14.31997,2547.0,2546.9,3.0]
[1748895562210,0.7849,2546.9,2546.8,0.00589484]
[1748895562410,0.7849,2546.9,2546.4,1.962]
[1748895562411,0.78503,2546.5,2546.4,0.6677]
[1748895562616,3.99283,2546.5,2546.4,0.78505]
[1748895563114,3.2078,2546.5,2546.4,0.78505]
[1748895563415,3.99283,2546.5,2546.4,0.78505]
[1748895563617,3.2078,2546.5,2546.4,0.78505]
[1748895564012,3.2078,2546.5,2546.4,2.06525]
[1748895564416,18.301,2546.7,2546.6,0.785]
[1748895566311,19.08597,2546.7,2546.6,0.785]
[1748895566517,0.78503,2546.6,2546.5,0.78501]
[1748895566717,20.37338,2546.7,2546.6,0.785]
[1748895566911,0.78501,2546.6,2546.5,0.78501]
[1748895567311,20.37337,2546.7,2546.6,0.785]
[1748895568914,61.17337,2546.7,2546.6,0.785]
[1748895569717,61.17337,2546.7,2546.3,1.99249]
[1748895569718,0.78502,2546.6,2546.5,0.78501]
[1748895569920,1.2788,2546.6,2546.5,0.78501]
[1748895570219,20.3688,2546.6,2546.5,0.78501]
[1748895570421,0.78505,2546.5,2546.4,0.78504]
[1748895570620,3.99285,2546.5,2546.4,0.78504]
[1748895570923,3.2078,2546.5,2546.4,0.78504]
[1748895573521,0.78506,2546.4,2546.3,0.02978]
[1748895573719,6.15716,2546.4,2546.3,0.02978]
[1748895575820,0.78521,2545.9,2545.8,0.78523]
[1748895576019,22.29901,2545.9,2545.8,0.78523]
[1748895576922,0.78527,2545.7,2545.6,1.46006484]
[1748895577431,0.78527,2545.7,2545.6,0.00589484]
[1748895577728,5.0,2545.7,2545.0,1.3231]
[1748895577926,3.2078,2545.3,2545.2,0.78541]
[1748895578123,0.78546,2545.1,2545.0,0.6466]
[1748895578315,23.12146,2545.1,2545.0,0.6466]
[1748895579426,0.78552,2544.9,2544.8,0.79142484]
[1748895579625,3.99332,2544.9,2544.8,0.79142484]
[1748895579927,3.2078,2544.9,2544.8,0.79142484]
[1748895580327,3.99332,2544.9,2544.8,0.79142484]
[1748895580526,3.2078,2544.9,2544.8,0.79142484]
[1748895581829,3.99332,2544.9,2544.8,0.79142484]
[1748895582827,3.2078,2544.9,2544.8,0.79142484]
[1748895583129,3.99332,2544.9,2544.8,0.79142484]
[1748895583932,3.2078,2544.9,2544.8,0.79142484]
[1748895584623,3.99332,2544.9,2544.8,0.79142484]
[1748895587930,3.2078,2544.9,2544.8,0.79142484]
[1748895588132,3.99332,2544.9,2544.8,0.79142484]
[1748895588531,3.99332,2544.9,2544.8,0.00589484]
[1748895588922,3.99332,2544.9,2544.8,1.29329484]
[1748895590631,3.92778,2544.8,2543.6,3.92948]
[1748895590938,3.92778,2544.8,2544.3,1.9499]
[1748895590939,0.78568,2544.4,2544.3,1.9499]
[1748895591240,59.112,2544.4,2543.1,3.2078]
[1748895591430,0.78602,2543.3,2543.2,1.9499]
[1748895591927,3.2078,2543.4,2543.0,0.00392]
[1748895591928,0.78608,2543.1,2543.0,0.00392]
[1748895592128,8.02588,2543.1,2543.0,0.00392]
[1748895592337,3.99388,2543.1,2543.0,0.00392]
[1748895592540,26.33888,2543.1,2543.0,0.00392]
[1748895592734,26.33888,2543.1,2543.0,0.79003]
[1748895592735,25.5528,2543.1,2543.0,0.79003]
[1748895593227,21.5208,2543.1,2543.0,0.79003]
[1748895593430,18.313,2543.1,2543.0,0.79003]
[1748895594334,18.318,2543.3,2543.0,0.00392]
[1748895594541,18.318,2543.3,2543.2,0.78605]
[1748895594736,3.2078,2543.4,2543.1,1.2595]
[1748895595038,25.5588,2543.4,2543.3,0.78602]
[1748895595336,7.2408,2543.4,2543.3,0.78602]
[1748895595536,3.2078,2543.4,2543.3,0.78602]
[1748895595740,3.2078,2543.4,2543.3,2.11342]
[1748895596041,3.2078,2543.4,2543.3,5.78602]
[1748895596239,0.00589484,2543.5,2543.3,5.78602]
[1748895596439,0.00589484,2543.5,2543.4,2.74748]
[1748895597038,0.00589484,2543.5,2543.4,7.74748]
[1748895597433,0.00589484,2543.5,2543.4,10.95528]
[1748895597628,0.00589484,2543.5,2543.4,7.74748]
[1748895599444,0.00589484,2543.5,2543.4,2.74748]
[1748895600345,0.00589484,2543.5,2543.4,5.95528]
[1748895600542,0.00589484,2543.5,2543.4,2.74748]
[1748895600849,3.2078,2544.0,2543.9,0.78583]
[1748895601234,7.2418,2544.3,2544.2,0.78574]
[1748895601535,0.78565,2544.5,2544.4,0.78567]
[1748895601734,3.2078,2544.5,2544.4,0.78567]
[1748895602440,3.99344,2544.5,2544.4,0.78567]
[1748895602642,3.2078,2544.5,2544.4,0.78567]
[1748895603031,3.99344,2544.5,2544.4,0.78567]
[1748895603635,0.78571,2544.3,2544.2,0.00589484]
[1748895603835,4.81671,2544.3,2544.2,0.79163484]
[1748895604040,4.81671,2544.3,2544.2,0.00589484]
[1748895605340,4.81671,2544.3,2544.2,0.79163484]
[1748895605545,4.031,2544.3,2544.2,0.79163484]
[1748895606045,4.81671,2544.3,2544.2,0.79163484]
[1748895607245,0.78571,2544.3,2544.2,0.79163484]
[1748895607446,25.5578,2544.5,2544.4,0.78568]
[1748895607836,25.5578,2544.5,2544.3,0.78569]
[1748895608041,0.78571,2544.3,2544.2,0.79160484]
[1748895609047,26.34347,2544.5,2544.4,0.78567]
[1748895609243,0.7857,2544.4,2544.3,0.78568]
[1748895609643,8.02446,2544.5,2544.4,0.78567]
[1748895609842,8.02446,2544.5,2544.2,0.00589484]
[1748895609843,0.78571,2544.4,2544.3,0.78569]
[1748895610147,0.78571,2544.3,2544.2,0.00589484]
[1748895610337,2.04451,2544.3,2544.2,0.00589484]
[1748895610540,1.96444,2544.1,2543.4,1.42006]
[1748895610745,0.78595,2543.5,2543.4,0.78596]
[1748895611547,0.78598,2543.4,2543.3,0.78599]
[1748895611845,0.78601,2543.3,2543.2,0.65992]
[1748895612049,0.78597,2543.5,2543.4,0.78595]
[1748895614246,25.5588,2543.6,2543.3,0.78599]
[1748895614247,0.78601,2543.4,2543.3,0.78599]
[1748895614849,2.11637,2543.5,2543.4,0.78598]
[1748895615446,2.11637,2543.5,2543.2,0.65992]
[1748895615447,0.78602,2543.4,2543.3,0.78599]
[1748895615751,1.3304,2543.5,2543.2,0.00392]
[1748895615752,0.78602,2543.3,2543.2,0.00392]
[1748895615949,6.00232,2543.3,2543.2,0.00392]
[1748895616943,8.34230235,2543.3,2543.2,0.00392]
[1748895617251,8.34230235,2543.3,2543.2,0.78997]
[1748895617653,8.34230235,2543.3,2543.2,0.00392]
[1748895619048,8.34230235,2543.3,2543.2,0.78997]
[1748895619250,8.34230235,2543.3,2543.2,0.00392]
[1748895619952,8.34230235,2543.3,2543.2,0.78997]
[1748895620154,8.34230235,2543.3,2543.2,0.00392]
[1748895620650,6.00232,2543.3,2543.2,0.00392]
[1748895620950,6.00232,2543.3,2542.8,2.59752]
[1748895620951,0.78615,2542.9,2542.8,0.78614]
[1748895621150,7.2398,2542.9,2542.8,0.78614]
[1748895621346,3.2078,2542.9,2542.8,0.78614]
[1748895621652,18.322,2542.9,2542.8,0.78614]
[1748895622050,0.00589484,2543.1,2543.0,0.78611]
[1748895622760,0.00589484,2543.1,2543.0,1.47031]
[1748895622950,0.79197484,2543.1,2543.0,1.47031]
[1748895623152,0.00589484,2543.1,2543.0,1.47031]
[1748895624557,0.79197484,2543.1,2543.0,1.47031]
[1748895624959,0.00589484,2543.1,2542.5,5.17344]
[1748895625159,7.8888,2543.0,2542.9,0.78614]
[1748895625860,8.67491,2543.0,2542.9,0.78614]
[1748895626255,7.8888,2543.0,2542.9,0.78614]
[1748895626662,8.67491,2543.0,2542.9,0.78614]
[1748895627253,7.8888,2543.0,2542.9,0.78614]
[1748895627467,8.67491,2543.0,2542.9,0.78614]
[1748895628060,7.8888,2543.0,2542.9,0.78614]
[1748895629163,5.46711,2543.0,2542.9,0.78614]
[1748895629559,4.681,2543.0,2542.9,0.78614]
[1748895630271,5.46711,2543.0,2542.9,0.78614]
[1748895630463,4.681,2543.0,2542.9,0.78614]
[1748895631958,0.00589484,2543.1,2543.0,0.78611]
[1748895638174,0.00589484,2543.1,2543.0,2.11951]
[1748895662202,3.11099818,2543.6,2543.5,0.78595]
[1748895662391,3.11099818,2543.9,2543.8,0.78586]
[1748895662593,10.34879818,2544.0,2543.9,0.78583]
[1748895662795,25.5518,2544.0,2543.9,0.78583]
[1748895663498,0.78586,2543.8,2543.7,0.00589484]
[1748895664102,9.67460772,2543.8,2543.7,0.00589484]
[1748895664503,5.78586,2543.8,2543.7,0.00589484]
[1748895664703,9.67460772,2543.8,2543.7,0.00589484]
[1748895665005,11.61590772,2543.8,2543.7,0.00589484]
[1748895665504,7.72716,2543.8,2543.7,0.00589484]
[1748895667810,11.61590772,2543.8,2543.7,0.00589484]
[1748895668005,7.72716,2543.8,2543.7,0.00589484]
[1748895668205,11.61590772,2543.8,2543.7,0.00589484]
[1748895668406,7.72716,2543.8,2543.7,0.00589484]
[1748895669110,7.72168786,2543.8,2543.7,0.00589484]
[1748895669502,2.72168786,2543.8,2543.7,0.00589484]
[1748895670006,6.61043558,2543.8,2543.7,0.00589484]
[1748895671012,2.72168786,2543.8,2543.7,0.00589484]
[1748895674117,6.61043558,2543.8,2543.7,0.00589484]
[1748895675217,6.61043558,2543.8,2543.0,0.6863]
[1748895675218,0.78608,2543.1,2543.0,0.6863]
[1748895675415,0.78608,2543.1,2542.7,3.81769075]
[1748895675416,0.78617,2542.9,2542.8,0.78615]
[1748895676116,2.07267,2542.9,2542.8,0.78615]
[1748895676716,0.78617,2542.8,2542.7,2.69577]
[1748895676913,2.07266,2542.9,2542.8,0.78617]
[1748895677115,65.46327287,2543.1,2542.7,3.87507]
[1748895677320,62.3188,2543.1,2543.0,0.78611]
[1748895677623,21.5188,2543.1,2543.0,0.78611]
[1748895677913,3.2078,2543.1,2543.0,0.78611]
[1748895681019,4.81206,2543.2,2543.1,0.78608]
[1748895681319,4.026,2543.2,2543.1,0.78608]
[1748895682417,6.38070725,2543.2,2543.1,0.78608]
[1748895682926,2.35470725,2543.2,2543.1,0.78608]
[1748895683109,23.87250725,2543.4,2543.0,3.98474]
[1748895683310,23.87250725,2543.4,2543.3,0.78602]
[1748895684116,24.65848725,2543.4,2543.3,2.09672]
[1748895684425,23.87250725,2543.4,2543.3,2.09672]
[1748895685022,22.30378,2543.4,2543.3,2.09672]
[1748895685221,21.5178,2543.4,2543.3,2.09672]
[1748895686719,22.30378,2543.4,2543.3,2.09672]
[1748895686922,24.65848725,2543.4,2543.3,2.09672]
[1748895687621,24.65848725,2543.4,2543.3,0.78602]
[1748895688723,23.87250725,2543.4,2543.3,0.78602]
[1748895689022,23.87250725,2543.4,2543.3,2.04712]
[1748895691017,24.65848725,2543.4,2543.3,2.04712]
[1748895691223,23.87250725,2543.4,2543.3,2.04712]
[1748895691718,24.65848725,2543.4,2543.3,2.04712]
[1748895692725,23.87250725,2543.4,2543.3,2.04712]
[1748895693228,24.65848725,2543.4,2543.3,2.04712]
[1748895694029,2.35470725,2543.4,2543.3,2.04712]
[1748895694229,20.66070725,2543.4,2543.3,2.04712]
[1748895694725,18.306,2543.4,2543.3,2.04712]
[1748895695122,20.66070725,2543.4,2543.3,2.04712]
[1748895695826,21.44668725,2543.4,2543.3,2.04712]
[1748895696827,20.66070725,2543.4,2543.3,2.04712]
[1748895697027,21.44668725,2543.4,2543.3,2.04712]
[1748895697326,0.78608,2543.1,2543.0,3.2078]
[1748895697629,0.78611,2543.0,2542.9,0.78612]
[1748895698122,3.14093408,2543.0,2542.9,0.78612]
[1748895698434,0.78611,2543.0,2542.9,0.78612]
[1748895698723,0.78611,2543.0,2542.6,1.8888]
[1748895698724,1.96529,2543.0,2542.6,1.8888]
[1748895698931,6.34851097,2542.9,2542.8,0.78613]
[1748895699124,3.99394,2542.9,2542.8,0.78613]
[1748895699923,6.34812368,2542.9,2542.8,0.78613]
[1748895701830,0.78617,2542.8,2542.7,2.02437]
[1748895702129,6.34814368,2542.9,2542.8,0.78617]
[1748895705331,3.14034368,2542.9,2542.8,0.78617]
[1748895705830,6.34814368,2542.9,2542.8,0.78617]
[1748895709031,0.78617,2542.8,2542.7,2.02437]
[1748895709635,6.34814368,2542.9,2542.8,0.78617]
[1748895710936,7.66074368,2542.9,2542.8,0.78617]
[1748895711333,0.78617,2542.8,2542.7,2.02438]
[1748895711530,0.78617,2542.8,2542.7,0.78618]
[1748895711730,1.3126,2542.8,2542.6,0.6303]
[1748895711932,0.78626,2542.6,2542.5,0.78625]
[1748895712133,0.78626,2542.5,2542.4,0.78626]
[1748895712936,0.78635,2542.2,2542.1,1.8723]
[1748895713137,0.78645,2542.0,2541.9,0.78642]
[1748895716244,2.09901,2542.1,2542.0,0.78642]
[1748895716446,2.09901,2542.1,2541.9,0.78642]
[1748895716447,0.78644,2542.0,2541.9,0.78642]
[1748895717039,2.099,2542.1,2542.0,0.78642]
[1748895717540,18.301,2542.1,2542.0,0.78642]
[1748895717750,2.35223197,2542.3,2542.2,0.78635]
[1748895717937,2.35223197,2542.4,2542.3,0.78632]
[1748895718243,3.99407,2542.5,2542.4,0.78629]
[1748895718445,3.2078,2542.5,2542.4,0.78629]
[1748895719739,3.99406,2542.5,2542.4,0.78629]
[1748895720940,3.2078,2542.5,2542.4,0.78629]
[1748895723342,6.35210681,2542.8,2542.7,0.7862]
[1748895724248,0.78623,2542.7,2542.6,0.78621]
[1748895724748,5.56592681,2542.8,2542.7,0.7862]
[1748895725454,3.21369484,2542.8,2542.7,0.7862]
[1748895725850,3.21369484,2542.8,2542.7,5.7862]
[1748895725851,0.00589484,2542.8,2542.7,5.7862]
[1748895728349,0.00589484,2542.8,2542.7,0.7862]
[1748895728547,0.00589484,2542.8,2542.5,1.323]
[1748895728548,3.21369484,2542.8,2542.5,1.323]
[1748895728750,3.21369484,2542.8,2542.7,0.7862]
[1748895728955,3.99988484,2542.8,2542.7,0.7862]
[1748895729153,6.35211681,2542.8,2542.7,0.7862]
[1748895729450,3.99988484,2542.8,2542.7,0.7862]
[1748895729858,3.21369484,2542.8,2542.7,0.7862]
[1748895730052,5.56592681,2542.8,2542.7,0.7862]
[1748895730455,3.21369484,2542.8,2542.7,0.7862]
[1748895730761,5.56592681,2542.8,2542.7,0.7862]
[1748895731061,6.35209681,2542.8,2542.7,0.7862]
[1748895732656,5.56592681,2542.8,2542.7,0.7862]
[1748895732858,3.99986484,2542.8,2542.7,0.7862]
[1748895733160,6.35209681,2542.8,2542.7,0.7862]
[1748895734262,7.67089681,2542.8,2542.7,0.7862]
[1748895734668,7.67089681,2542.8,2542.5,1.323]
[1748895734669,0.78627,2542.6,2542.5,0.78624]
[1748895735369,3.13845197,2542.7,2542.6,0.78623]
[1748895735561,20.64723197,2542.7,2542.6,0.78623]
[1748895736064,21.43343197,2542.7,2542.6,0.78623]
[1748895736267,20.64723197,2542.7,2542.6,0.78623]
[1748895736466,20.64723197,2542.7,2542.6,2.11543]
[1748895736863,21.43343197,2542.7,2542.6,2.11543]
[1748895737864,20.64723197,2542.7,2542.6,2.11543]
[1748895738767,2.35223197,2542.7,2542.6,2.11543]